bitfinex/quotes_SOLUSD_20241126
["timestamp","ask_amount","ask_price","bid_price","bid_amount"]
[1732617999183,45.85324184,230.63,230.56,45.85324184]
[1732617999355,45.85324184,230.61,230.54,45.85324184]
[1732617999555,45.85324184,230.61,230.5,6.4315]
[1732617999556,45.85324184,230.59,230.5,45.85324184]
[1732617999756,45.85324184,230.59,230.47,15.7525]
[1732617999757,45.85324184,230.53,230.46,45.85324184]
[1732618000074,45.85324184,230.57,230.48,45.85324184]
[1732618000252,45.85324184,230.57,230.5,45.85324184]
[1732618000575,45.85324184,230.63,230.54,45.85324184]
[1732618000887,45.85324184,230.7,230.62,45.85324184]
[1732618001049,16.8557,230.8,230.62,45.85324184]
[1732618001050,45.85324184,230.72,230.62,45.85324184]
[1732618001249,45.85324184,230.74,230.66,45.85324184]
[1732618001474,45.85324184,230.72,230.64,45.85324184]
[1732618002680,45.85324184,230.74,230.66,45.85324184]
[1732618003175,45.85324184,230.68,230.6,45.85324184]
[1732618003356,45.85324184,230.65,230.56,45.85324184]
[1732618003562,45.85324184,230.63,230.54,45.85324184]
[1732618003753,45.85324184,230.59,230.5,45.85324184]
[1732618003958,45.85324184,230.57,230.5,45.85324184]
[1732618004172,45.85324184,230.59,230.5,45.85324184]
[1732618004874,45.85324184,230.57,230.48,45.85324184]
[1732618005477,45.85324184,230.57,230.5,45.85324184]
[1732618006193,45.85324184,230.55,230.48,45.85324184]
[1732618006356,45.85324184,230.55,230.41,6.4315]
[1732618006357,45.85324184,230.49,230.42,45.85324184]
[1732618006561,45.85324184,230.64,230.28,50.85324184]
[1732618006562,45.85324184,230.44,230.36,53.56667971]
[1732618006782,45.85324184,230.42,230.36,7.71343787]
[1732618007075,45.85324184,230.46,230.38,45.85324184]
[1732618007280,45.85324184,230.5,230.42,45.85324184]
[1732618007870,45.85324184,230.5,230.44,45.85324184]
[1732618008167,45.85324184,230.5,230.42,45.85324184]
[1732618008770,45.85324184,230.52,230.44,45.85324184]
[1732618009093,45.85324184,230.46,230.36,7.71343787]
[1732618009385,45.85324184,230.37,230.36,7.71343787]
[1732618009965,45.85324184,230.39,230.36,7.71343787]
[1732618010380,45.85324184,230.41,230.36,7.71343787]
[1732618011087,45.85324184,230.39,230.36,7.71343787]
[1732618011293,45.85324184,230.37,230.36,7.71343787]
[1732618011678,45.85324184,230.39,230.36,7.71343787]
[1732618012013,45.85324184,230.41,230.36,7.71343787]
[1732618012586,45.85324184,230.43,230.36,7.71343787]
[1732618012791,45.85324184,230.41,230.36,7.71343787]
[1732618012981,4.339,230.47,230.36,7.71343787]
[1732618012982,45.85324184,230.37,230.36,7.71343787]
[1732618013482,45.85324184,230.41,230.36,7.71343787]
[1732618013687,45.85324184,230.37,230.36,7.71343787]
[1732618014070,50.85324184,230.37,230.36,7.71343787]
[1732618014595,20.0,230.34,230.2,45.85324184]
[1732618014779,45.85324184,230.28,230.2,45.85324184]
[1732618015766,45.85324184,230.26,230.18,45.85324184]
[1732618015973,20.0,230.34,230.2,45.85324184]
[1732618015974,45.85324184,230.28,230.2,45.85324184]
[1732618016285,45.85324184,230.32,230.24,45.85324184]
[1732618016992,45.85324184,230.25,230.14,45.85324184]
[1732618017186,45.85324184,230.23,230.14,45.85324184]
[1732618017491,45.85324184,230.23,230.13,0.4944652]
[1732618017492,45.85324184,230.23,230.16,45.85324184]
[1732618018191,45.85324184,230.25,230.16,45.85324184]
[1732618018392,45.85324184,230.27,230.18,45.85324184]
[1732618018698,45.85324184,230.27,230.13,20.4944652]
[1732618018893,45.85324184,230.27,230.17,45.85324184]
[1732618019084,45.85324184,230.27,230.19,45.85324184]
[1732618019283,20.0,230.17,230.13,0.4944652]
[1732618019606,20.0,230.11,229.95,45.85324184]
[1732618019895,45.85324184,230.1,230.01,45.85324184]
[1732618020069,45.85324184,230.1,229.93,10.0]
[1732618020070,45.85324184,230.12,230.03,45.85324184]
[1732618020478,45.85324184,230.12,230.05,45.85324184]
[1732618020675,45.85324184,230.14,230.07,45.85324184]
[1732618020874,45.85324184,230.12,230.05,45.85324184]
[1732618021086,45.85324184,230.1,230.03,45.85324184]
[1732618021476,15.2008,230.25,230.09,45.85324184]
[1732618021477,45.85324184,230.2,230.09,45.85324184]
[1732618021693,45.85324184,230.24,230.15,45.85324184]
[1732618021902,45.85324184,230.22,230.13,45.85324184]
[1732618022096,45.85324184,230.22,230.15,45.85324184]
[1732618022278,45.85324184,230.2,230.14,23.776884]
[1732618022590,45.85324184,230.2,230.13,45.85324184]
[1732618022803,45.85324184,230.18,230.11,45.85324184]
[1732618022990,45.85324184,230.12,230.07,16.3652]
[1732618023193,45.85324184,230.12,230.05,45.85324184]
[1732618023375,45.85324184,230.14,230.07,45.85324184]
[1732618024092,45.85324184,230.18,230.1,45.85324184]
[1732618024389,45.85324184,230.18,230.11,23.776884]
[1732618025375,45.85324184,230.2,230.13,23.776884]
[1732618025685,45.85324184,230.22,230.16,23.776884]
[1732618025882,45.85324184,230.2,230.16,23.776884]
[1732618026083,45.85324184,230.21,230.16,23.776884]
[1732618026394,45.85324184,230.22,230.16,23.776884]
[1732618026596,45.85324184,230.17,230.11,45.85324184]
[1732618026772,45.85324184,230.14,230.08,43.776884]
[1732618026973,45.85324184,230.14,230.09,23.776884]
[1732618027174,45.85324184,230.16,230.09,69.63012584]
[1732618027378,5.0,230.26,230.1,45.85324184]
[1732618027379,45.85324184,230.18,230.1,45.85324184]
[1732618027702,45.85324184,230.19,230.09,23.776884]
[1732618027993,45.85324184,230.2,230.13,23.776884]
[1732618028392,45.85324184,230.19,230.13,23.776884]
[1732618028576,45.85324184,230.14,230.06,45.85324184]
[1732618028901,45.85324184,230.12,230.04,45.85324184]
[1732618029085,45.85324184,230.05,230.02,0.26086]
[1732618029283,20.0,230.1,230.02,0.26086]
[1732618029582,50.85324184,230.16,230.02,0.26086]
[1732618029583,20.0,230.09,230.02,0.26086]
[1732618029980,45.85324184,230.07,230.02,0.26086]
[1732618030294,20.0,230.09,230.02,0.26086]
[1732618030295,45.85324184,230.03,230.02,0.26086]
[1732618030974,45.85324184,230.03,230.0,44.13836873]
[1732618030975,20.0,230.01,230.0,44.13836873]
[1732618031185,24.3476,230.01,230.0,44.13836873]
[1732618031488,24.3476,230.01,229.9,0.4944652]
[1732618031489,20.0,230.01,229.88,45.85324184]
[1732618031795,45.85324184,229.89,229.81,16.3652]
[1732618032097,45.85324184,229.85,229.82,0.08043904]
[1732618032794,45.85324184,229.85,229.81,0.99461045]
[1732618032795,45.85324184,229.87,229.81,0.99461045]
[1732618032993,45.85324184,229.94,229.86,45.85324184]
[1732618033204,45.85324184,229.9,229.81,0.99461045]
[1732618033379,45.85324184,229.86,229.81,0.99461045]
[1732618033580,45.85324184,229.89,229.81,46.84785229]
[1732618034097,45.85324184,229.91,229.83,45.85324184]
[1732618034601,45.85324184,229.93,229.83,45.85324184]
[1732618034798,45.85324184,229.91,229.81,46.84785229]
[1732618034977,45.85324184,229.89,229.82,23.776884]
[1732618035299,45.85324184,229.93,229.86,23.776884]
[1732618036007,45.85324184,229.97,229.89,45.85324184]
[1732618036176,45.85324184,229.95,229.87,45.85324184]
[1732618036376,45.85324184,229.97,229.89,45.85324184]
[1732618036606,5.0,230.02,229.84,20.0]
[1732618036785,45.85324184,229.96,229.88,45.85324184]
[1732618037095,45.85324184,229.98,229.9,45.85324184]
[1732618037478,45.85324184,229.96,229.88,45.85324184]
[1732618037798,45.85324184,229.94,229.86,45.85324184]
[1732618038013,45.85324184,229.96,229.88,45.85324184]
[1732618038181,45.85324184,229.9,229.85,20.0]
[1732618038504,45.85324184,229.9,229.75,6.6444]
[1732618038505,45.85324184,229.92,229.84,45.85324184]
[1732618038710,5.0,229.97,229.79,0.08043904]
[1732618038881,45.85324184,229.86,229.76,0.08043904]
[1732618039204,45.85324184,229.86,229.78,45.85324184]
[1732618039404,45.85324184,229.9,229.82,45.85324184]
[1732618039585,45.85324184,229.92,229.84,45.85324184]
[1732618040402,45.85324184,229.9,229.82,45.85324184]
[1732618041496,45.85324184,230.01,229.89,45.85324184]
[1732618041709,45.85324184,230.01,229.93,45.85324184]
[1732618042398,58.35915691,230.04,229.97,45.85324184]
[1732618042583,12.50591507,230.04,229.99,45.85324184]
[1732618042793,12.50591507,230.04,229.97,45.85324184]
[1732618043102,45.85324184,230.04,229.96,45.85324184]
[1732618043308,45.85324184,230.12,229.95,43.776884]
[1732618043505,45.85324184,230.16,230.08,45.85324184]
[1732618043807,5.0,230.2,230.01,20.0]
[1732618043982,9.3432,230.25,229.94,6.4059]
[1732618043983,5.0,230.13,229.94,6.4059]
[1732618044184,5.0,230.12,229.94,6.4059]
[1732618044388,5.0,230.13,229.94,6.4059]
[1732618044803,45.85324184,229.99,229.91,45.85324184]
[1732618045002,45.85324184,229.99,229.8,45.85324184]
[1732618045003,5.0,229.79,229.7,22.23202597]
[1732618045184,29.44105706,229.78,229.72,0.08043904]
[1732618045384,23.776884,229.72,229.7,13.98215083]
[1732618045694,52.59504118,229.71,229.7,13.98215083]
[1732618046103,20.0,229.68,229.45,6.9003652]
[1732618046285,20.0,229.68,229.49,5.0]
[1732618046497,20.0,229.68,229.45,6.9003652]
[1732618046498,20.0,229.68,229.45,0.4944652]
[1732618046711,45.85324184,229.6,229.52,45.85324184]
[1732618047215,65.85324184,229.68,229.45,0.4944652]
[1732618047216,45.85324184,229.58,229.45,0.4944652]
[1732618047385,45.85324184,229.56,229.47,45.85324184]
[1732618047801,45.85324184,229.54,229.45,46.34770704]
[1732618048011,45.85324184,229.56,229.47,45.85324184]
[1732618049398,5.0,228.9,228.69,60.82190156]
[1732618049590,217.11719085,229.08,228.69,60.82190156]
[1732618049591,45.85324184,228.93,228.69,60.82190156]
[1732618049926,5.0,228.96,228.7,0.6554342]
[1732618050090,45.85324184,228.96,228.82,45.85324184]
[1732618050292,45.85324184,229.03,228.93,45.85324184]
[1732618050520,5.0,229.12,228.85,6.4059]
[1732618050814,5.0,229.01,228.85,6.4059]
[1732618051105,5.0,229.0,228.92,45.85324184]
[1732618051315,5.0,228.76,228.74,45.85324184]
[1732618051613,5.0,228.95,228.75,6.4059]
[1732618051911,70.0,229.16,228.75,6.4059]
[1732618051912,5.0,229.01,228.94,45.85324184]
[1732618052215,5.0,229.18,229.0,45.85324184]
[1732618052216,5.0,229.03,229.0,45.85324184]
[1732618052403,50.85324184,229.16,228.85,17.07992998]
[1732618052404,5.0,228.94,228.85,16.4248]
[1732618052591,5.0,229.03,228.93,45.85324184]
[1732618052919,5.0,228.99,228.96,45.85324184]
[1732618053305,5.0,229.01,228.98,45.85324184]
[1732618053702,5.0,229.15,228.86,17.481047]
[1732618053703,5.0,229.06,229.0,45.85324184]
[1732618054014,5.0,229.11,229.06,45.85324184]
[1732618054222,5.0,229.11,229.09,45.85324184]
[1732618054515,5.0,229.1,229.09,45.85324184]
[1732618054895,5.0,229.08,229.07,45.85324184]
[1732618055087,5.0,229.06,229.05,45.85324184]
[1732618055286,5.0,229.14,229.05,45.85324184]
[1732618055514,5.0,229.12,229.1,45.85324184]
[1732618055809,5.0,229.15,229.1,45.85324184]
[1732618056016,5.0,229.09,228.99,20.0]
[1732618056198,10.0,229.04,228.86,17.481047]
[1732618056400,5.0,229.03,228.86,17.481047]
[1732618056604,5.0,229.05,228.86,17.481047]
[1732618056921,5.0,229.03,228.86,17.481047]
[1732618057320,10.0,228.99,228.86,17.481047]
[1732618057493,5.0,229.01,228.96,45.85324184]
[1732618057693,10.0,229.06,228.96,45.85324184]
[1732618057916,5.0,229.08,228.96,45.85324184]
[1732618058110,5.0,229.05,228.96,45.85324184]
[1732618058914,10.0,229.05,229.04,45.85324184]
[1732618059220,5.0,229.16,229.04,91.70648368]
[1732618059420,5.0,229.07,228.86,17.481047]
[1732618059597,10.0,229.08,229.07,45.85324184]
[1732618059907,5.0,229.05,228.96,45.85324184]
[1732618060104,10.0,229.08,228.96,45.85324184]
[1732618060312,9.69589844,229.2,228.96,45.85324184]
[1732618060313,5.0,229.11,229.07,45.85324184]
[1732618060494,5.0,229.14,229.1,45.85324184]
[1732618060695,10.0,229.14,229.13,45.85324184]
[1732618061316,5.0,229.19,229.13,45.85324184]
[1732618061615,5.0,229.19,229.18,45.85324184]
[1732618061823,14.69589844,229.2,229.18,45.85324184]
[1732618062027,5.0,229.17,229.16,45.85324184]
[1732618062203,10.0,229.11,229.1,45.85324184]
[1732618062400,10.0,229.09,229.08,45.85324184]
[1732618062593,5.0,229.1,229.08,45.85324184]
[1732618062794,5.0,228.99,228.88,6.658]
[1732618062992,5.0,229.05,228.98,45.85324184]
[1732618063224,5.0,229.08,229.04,45.85324184]
[1732618063427,5.0,229.1,229.07,45.85324184]
[1732618063605,5.0,229.1,229.09,45.85324184]
[1732618064321,5.0,229.1,228.96,45.85324184]
[1732618064322,5.0,229.1,229.07,45.85324184]
[1732618064501,5.0,229.08,229.07,45.85324184]
[1732618064705,5.0,228.97,228.88,6.658]
[1732618064908,5.0,229.0,228.88,6.658]
[1732618064909,5.0,228.99,228.96,45.85324184]
[1732618065097,5.0,229.01,228.99,45.85324184]
[1732618065297,5.0,229.05,229.0,45.85324184]
[1732618065509,10.0,229.09,229.04,45.85324184]
[1732618065711,5.0,229.07,229.04,45.85324184]
[1732618065916,10.0,229.09,229.06,45.85324184]
[1732618066128,5.0,229.05,229.04,45.85324184]
[1732618066306,10.0,229.03,229.02,45.85324184]
[1732618066514,45.85324184,229.09,228.88,6.658]
[1732618066515,10.0,229.01,229.0,45.85324184]
[1732618066827,5.0,229.03,229.0,45.85324184]
[1732618067120,5.0,229.04,229.02,45.85324184]
[1732618067522,5.0,229.05,229.02,45.85324184]
[1732618067823,10.0,229.09,229.05,45.85324184]
[1732618068129,5.0,229.08,229.07,45.85324184]
[1732618068302,5.0,229.1,229.07,45.85324184]
[1732618068504,10.0,229.1,229.09,45.85324184]
[1732618068802,10.0,229.1,228.96,45.85324184]
[1732618068803,5.0,229.03,229.02,45.85324184]
[1732618069398,5.0,229.04,229.02,45.85324184]
[1732618069809,5.0,229.03,229.02,45.85324184]
[1732618070008,5.0,229.01,229.0,45.85324184]
[1732618070421,10.0,229.03,229.0,45.85324184]
[1732618070633,10.0,229.05,228.88,6.658]
[1732618070926,10.0,229.05,229.04,45.85324184]
[1732618071121,5.0,229.09,229.04,45.85324184]
[1732618071324,5.0,229.09,229.08,45.85324184]
[1732618071538,14.69589844,229.14,229.08,91.70648368]
[1732618071698,9.69589844,229.14,229.13,45.85324184]
[1732618071899,5.0,229.12,229.1,45.85324184]
[1732618072101,5.0,229.13,228.88,6.658]
[1732618072102,5.0,229.06,228.88,6.658]
[1732618072299,5.0,229.1,229.05,45.85324184]
[1732618072521,5.0,229.08,229.06,45.85324184]
[1732618072821,10.0,229.04,229.03,45.85324184]
[1732618073023,5.0,229.07,229.03,45.85324184]
[1732618073320,5.0,229.11,228.88,6.658]
[1732618073321,14.69589844,229.14,229.06,45.85324184]
[1732618073517,14.69589844,229.14,229.13,45.85324184]
[1732618074223,19.69589844,229.14,229.13,45.85324184]
[1732618074400,19.69589844,229.14,229.12,45.85324184]
[1732618074597,5.0,229.11,229.1,45.85324184]
[1732618074816,5.0,229.12,228.96,45.85324184]
[1732618074817,5.0,229.1,228.96,45.85324184]
[1732618075016,5.0,229.12,228.99,20.0]
[1732618075224,10.0,229.09,228.85,33.90599]
[1732618075402,5.0,229.09,228.86,1.68608611]
[1732618075605,5.0,229.09,228.89,12.98]
[1732618076002,5.0,229.08,228.86,1.68608611]
[1732618076330,5.0,229.05,228.96,45.85324184]
[1732618076509,5.0,229.06,228.96,45.85324184]
[1732618077306,5.0,229.13,228.96,45.85324184]
[1732618077625,10.0,229.13,229.12,45.85324184]
[1732618077832,10.0,229.11,229.1,45.85324184]
[1732618078028,5.0,229.02,228.88,1.94543419]
[1732618078241,5.0,229.07,228.65,1.74751168]
[1732618078242,5.0,228.86,228.65,1.74751168]
[1732618078522,45.85324184,228.9,228.85,45.85324184]
[1732618078523,5.0,228.87,228.85,45.85324184]
[1732618078828,5.0,228.83,228.81,45.85324184]
[1732618079123,50.85324184,228.82,228.71,9.695898]
[1732618079312,5.0,228.75,228.71,9.695898]
[1732618079510,10.0,228.76,228.67,45.85324184]
[1732618079716,5.0,228.74,228.67,45.85324184]
[1732618079936,5.0,228.73,228.67,45.85324184]
[1732618080110,5.0,228.73,228.65,45.85324184]
[1732618080435,9.3692,228.88,228.62,15.812]
[1732618080436,5.0,228.76,228.71,45.85324184]
[1732618080721,5.0,228.8,228.73,45.85324184]
[1732618080928,5.0,228.89,228.79,45.85324184]
[1732618081100,10.0,228.89,228.82,45.85324184]
[1732618081305,5.0,228.86,228.84,45.85324184]
[1732618081730,5.0,228.85,228.84,45.85324184]
[1732618081905,5.0,228.91,228.84,45.85324184]
[1732618082232,5.0,228.97,228.9,45.85324184]
[1732618082535,5.0,228.92,228.91,20.0]
[1732618082839,5.0,228.94,228.9,45.85324184]
[1732618083046,5.0,228.95,228.88,45.85324184]
[1732618083338,5.0,228.95,228.89,20.0]
[1732618083339,5.0,228.93,228.89,20.0]
[1732618083533,55.85324184,228.97,228.89,20.0]
[1732618083827,5.0,228.89,228.88,45.85324184]
[1732618084018,5.0,228.92,228.87,20.0]
[1732618084204,5.0,228.92,228.84,45.85324184]
[1732618084404,5.0,228.96,228.88,45.85324184]
[1732618084628,0.0457675,229.18,228.77,33.12]
[1732618084629,5.0,229.0,228.95,45.85324184]
[1732618084818,5.0,229.0,228.99,45.85324184]
[1732618085025,5.0,228.94,228.89,15.812]
[1732618085230,5.0,228.97,228.92,20.0]
[1732618085416,5.0,228.96,228.92,65.85324184]
[1732618085809,5.0,228.99,228.94,45.85324184]
[1732618086040,5.0,229.02,228.98,45.85324184]
[1732618086406,5.0,229.02,229.0,45.85324184]
[1732618087019,5.0,229.01,229.0,45.85324184]
[1732618087338,5.0,228.97,228.96,45.85324184]
[1732618087511,5.0,229.01,228.96,45.85324184]
[1732618088015,5.0,229.06,229.0,45.85324184]
[1732618088212,5.0,229.05,228.89,15.812]
[1732618088425,5.0,229.05,229.04,45.85324184]
[1732618088622,5.0,229.06,229.04,45.85324184]
[1732618088826,5.0,229.06,229.05,45.85324184]
[1732618089547,5.0,228.98,228.97,45.85324184]
[1732618089835,10.0,229.03,228.89,15.812]
[1732618090030,5.0,229.03,228.89,15.812]
[1732618090233,10.0,229.04,229.02,45.85324184]
[1732618090433,10.0,229.04,229.01,45.85324184]
[1732618090627,5.0,229.04,229.03,45.85324184]
[1732618090839,10.0,229.04,229.02,45.85324184]
[1732618091150,5.0,228.9,228.89,15.812]
[1732618091320,5.0,228.9,228.89,45.85324184]
[1732618091526,10.0,228.9,228.89,45.85324184]
[1732618091832,5.0,228.93,228.89,45.85324184]
[1732618092030,5.0,228.95,228.85,0.65514009]
[1732618092229,5.0,228.84,228.75,15.812]
[1732618092437,5.0,228.83,228.82,45.85324184]
[1732618092619,10.0,228.81,228.8,45.85324184]
[1732618092825,5.0,228.81,228.8,45.85324184]
[1732618093031,10.0,228.81,228.8,45.85324184]
[1732618093342,5.0,228.81,228.8,45.85324184]
[1732618093723,5.0,228.83,228.8,91.70648368]
[1732618093917,5.0,228.88,228.82,91.70648368]
[1732618094229,5.0,228.9,228.75,15.812]
[1732618094230,5.0,228.89,228.87,45.85324184]
[1732618094422,5.0,228.89,228.88,45.85324184]
[1732618094818,10.0,228.89,228.88,45.85324184]
[1732618095019,10.0,228.87,228.85,45.85324184]
[1732618095623,5.0,228.82,228.72,45.85324184]
[1732618095836,5.0,228.82,228.72,61.66524184]
[1732618096038,5.0,228.79,228.72,61.66524184]
[1732618096241,5.0,228.84,228.78,45.85324184]
[1732618096545,5.0,228.84,228.72,61.66524184]
[1732618096546,5.0,228.84,228.83,45.85324184]
[1732618096849,45.85324184,228.96,228.83,45.85324184]
[1732618096850,5.0,228.89,228.83,45.85324184]
[1732618097039,5.0,228.89,228.88,45.85324184]
[1732618097040,10.0,228.89,228.88,45.85324184]
[1732618097727,5.0,228.89,228.88,45.85324184]
[1732618098346,5.0,228.91,228.88,45.85324184]
[1732618098651,5.0,229.02,228.9,91.70648368]
[1732618098946,5.0,229.02,229.0,45.85324184]
[1732618099135,3.09727933,229.01,228.98,45.85324184]
[1732618099333,5.0,229.01,228.87,20.0]
[1732618099651,5.0,229.05,228.9,5.0]
[1732618099833,5.0,229.05,228.87,25.0]
[1732618100027,5.0,229.09,228.9,5.0]
[1732618100344,55.54914028,229.14,229.08,45.85324184]
[1732618100345,5.0,229.11,229.08,45.85324184]
[1732618100656,5.0,229.11,229.1,45.85324184]
[1732618100826,9.69589844,229.14,229.1,45.85324184]
[1732618101156,5.0,229.05,229.04,45.85324184]
[1732618101333,5.0,229.05,228.94,20.0]
[1732618101828,5.0,229.1,228.94,20.0]
[1732618102024,9.69589844,229.14,229.03,5.0]
[1732618102227,5.0457675,229.18,229.13,45.85324184]
[1732618102432,5.0,229.1,228.99,20.0]
[1732618102627,5.0,229.17,228.99,20.0]
[1732618102932,5.0,229.15,228.99,20.0]
[1732618103133,0.0457675,229.18,229.03,20.0]
[1732618103336,0.0457675,229.18,229.05,20.0]
[1732618104035,0.0457675,229.18,229.12,5.0]
[1732618104248,5.0,229.18,229.08,20.0]
[1732618104449,5.0,229.18,229.17,45.85324184]
[1732618105053,10.0,229.18,229.17,45.85324184]
[1732618105429,4.0,229.16,229.13,45.85324184]
[1732618105634,5.0,229.18,229.13,45.85324184]
[1732618105635,4.0,229.14,229.13,45.85324184]
[1732618106270,4.0,229.19,229.13,45.85324184]
[1732618106452,4.0,229.17,229.08,45.85324184]
[1732618106760,4.0,229.15,229.08,45.85324184]
[1732618108852,4.0,229.14,228.99,1.0]
[1732618109042,4.0,229.1,228.96,45.85324184]
[1732618109241,4.0,229.05,228.96,45.85324184]
[1732618109582,4.0,228.97,228.91,22.5218]
[1732618109769,4.0,228.87,228.8,6.1685]
[1732618109931,4.0,228.94,228.81,0.65530511]
[1732618110250,4.0,228.87,228.8,6.1685]
[1732618111053,4.0,228.87,228.86,45.85324184]
[1732618111652,4.0,228.85,228.8,6.1685]
[1732618111855,4.0,228.83,228.82,45.85324184]
[1732618112033,45.85324184,228.9,228.82,45.85324184]
[1732618112034,4.0,228.85,228.82,45.85324184]
[1732618112433,4.0,228.87,228.84,45.85324184]
[1732618112648,4.0,228.87,228.86,45.85324184]
[1732618113057,4.0,228.87,228.85,45.85324184]
[1732618113257,4.0,228.87,228.86,45.85324184]
[1732618113635,4.0,228.91,228.86,45.85324184]
[1732618113833,5.0,229.06,228.84,45.85324184]
[1732618113834,4.0,228.94,228.9,45.85324184]
[1732618114036,45.85324184,229.02,228.84,45.85324184]
[1732618114037,4.0,228.92,228.91,45.85324184]
[1732618114263,4.0,228.92,228.84,45.85324184]
[1732618114438,4.0,228.84,228.78,16.3533]
[1732618114643,4.0,228.8,228.78,16.3533]
[1732618114846,4.0,228.82,228.78,16.3533]
[1732618115365,10.0,228.82,228.81,45.85324184]
[1732618117251,5.0,228.82,228.81,45.85324184]
[1732618117459,10.0,228.82,228.81,45.85324184]
[1732618119963,10.0,228.82,228.81,45.59097184]
[1732618120261,5.0,228.82,228.81,45.85324184]
[1732618120638,5.0,228.84,228.83,20.0]
[1732618120844,5.0,228.84,228.83,65.85324184]
[1732618121049,5.0,228.84,228.83,45.85324184]
[1732618121570,5.0,228.86,228.83,45.85324184]
[1732618121753,5.0,228.87,228.85,45.85324184]
[1732618121957,5.0,228.89,228.85,45.85324184]
[1732618122277,5.0,228.87,228.85,45.85324184]
[1732618122776,5.0,228.87,228.86,45.85324184]
[1732618123676,5.0,228.9,228.85,45.85324184]
[1732618123852,5.0,228.88,228.86,45.85324184]
[1732618124051,5.0,228.88,228.87,45.85324184]
[1732618124366,5.0,228.88,228.67,44.90435187]
[1732618124367,5.0,228.8,228.62,17.25141938]
[1732618124598,45.85324184,228.96,228.73,45.85324184]
[1732618124599,5.0,228.74,228.73,45.85324184]
[1732618124869,5.0,228.81,228.73,45.85324184]
[1732618125082,5.0,228.81,228.79,45.85324184]
[1732618125874,5.0,228.73,228.62,17.25141938]
[1732618126180,5.0,228.64,228.62,17.25141938]
[1732618126484,5.0,228.78,228.61,46.11571184]
[1732618126485,10.0,228.62,228.61,0.26247]
[1732618127172,10.0,228.58,228.57,0.53733766]
[1732618127682,5.0,228.49,228.48,10.391508]
[1732618127853,50.85324184,228.49,228.48,10.391508]
[1732618128057,50.85324184,228.49,228.45,0.4904631]
[1732618128058,10.0,228.46,228.45,0.4904631]
[1732618128662,55.85324184,228.46,228.45,0.4904631]
[1732618128962,10.0,228.46,228.45,0.4904631]
[1732618129363,10.0,228.46,228.45,46.34370494]
[1732618129567,10.0,228.46,228.45,0.4904631]
[1732618129766,5.0,228.46,228.45,46.34370494]
[1732618130072,5.0,228.46,228.45,0.4904631]
[1732618130268,5.0,228.52,228.45,0.4904631]
[1732618130464,5.99355123,228.52,228.51,45.85324184]
[1732618130665,5.0,228.52,228.51,45.85324184]
[1732618131181,10.0,228.5,228.49,45.85324184]
[1732618131356,5.0,228.52,228.49,45.85324184]
[1732618131553,10.0,228.52,228.51,45.85324184]
[1732618131958,5.0,228.52,228.51,45.85324184]
[1732618132172,5.0,228.53,228.51,45.85324184]
[1732618132382,5.0,228.54,228.51,45.85324184]
[1732618132582,5.0,228.54,228.48,45.85324184]
[1732618132583,5.0,228.54,228.53,45.85324184]
[1732618132964,5.0,228.54,228.51,45.85324184]
[1732618133171,10.0,228.5,228.49,45.85324184]
[1732618133485,10.0,228.55,228.52,20.0]
[1732618133776,5.0,228.53,228.52,20.0]
[1732618133978,5.0,228.57,228.45,0.4904631]
[1732618134153,10.0,228.6,228.46,33.12]
[1732618134573,5.0,228.6,228.46,33.12]
[1732618134775,5.0,228.6,228.47,0.65606249]
[1732618135080,5.0,228.62,228.59,45.85324184]
[1732618135255,5.0,228.67,228.61,65.85324184]
[1732618135460,5.0,228.67,228.66,45.85324184]
[1732618135757,10.0,228.67,228.64,45.85324184]
[1732618135957,5.0,228.65,228.64,45.85324184]
[1732618136179,5.0,228.67,228.64,45.85324184]
[1732618136480,5.0,228.68,228.66,45.85324184]
[1732618137373,5.0,228.85,228.66,45.85324184]